lending/lending_fUSD_20240806
["ID","MTS","AMOUNT","RATE_DAILY","PERIOD"]
[334320024,1722967832053,-1743.35,0.00010384,2]
[334320026,1722967832062,-2500.0,0.00010397,2]
[334320028,1722967832073,-1029.037763,0.000104,2]
[334320029,1722967832083,-164.61705304,0.000104,2]
[334320031,1722967832092,-169.40193675,0.000104,2]
[334320032,1722967832101,-2773.75094588,0.000104,2]
[334320033,1722967832112,-75324.32449498,0.000104,2]
[334320034,1722967832127,-462.53216332,0.000104,2]
[334320035,1722967832138,-20838.06349582,0.000104,2]
[334320036,1722967832148,-300.93041,0.000104,2]
[334320037,1722967832158,-179.62485198,0.000104,2]
[334320038,1722967832167,-159.31525238,0.000104,2]
[334320039,1722967832176,-215.16299926,0.000104,2]
[334320040,1722967832186,-1452.47436079,0.000104,2]
[334320041,1722967832195,-1452.4743608,0.000104,2]
[334320042,1722967832205,-1075.0,0.00010404,2]
[334320043,1722967832214,-189.36,0.00010454,2]
[334320044,1722967832223,-200.0,0.00010473,2]
[334320045,1722967832233,-200.0,0.00010473,2]
[334320046,1722967832242,-1671.0,0.00010487,2]
[334320047,1722967832252,-393.002,0.00010487,2]
[334320048,1722967832262,-21740.0,0.00010487,2]
[334320049,1722967832272,-5837.0,0.00010487,2]
[334320050,1722967832282,-5129.0,0.00010487,2]
[334320051,1722967832292,-1203.0,0.00010487,2]
[334320052,1722967832302,-26683.35,0.00010493,2]
[334320053,1722967832312,-4788.7770882,0.00010493,2]
[334320054,1722967832322,-1911.0431596,0.00010493,2]
[334320055,1722967832331,-765.7181411,0.00010493,2]
[334320056,1722967832341,-1280.93,0.00010497,2]
[334320057,1722967832350,-37277.54169498,0.00010497,2]
[334320058,1722967832360,-195.94475375,0.00010499,2]
[334320059,1722967832369,-151.0,0.00010499,2]
[334320060,1722967832378,-507.0,0.000105,2]
[334320061,1722967832388,-159867.3181971,0.000105,2]
[334320069,1722967837890,-195.94475375,0.00010499,2]
[334320070,1722967837900,-893738.11865233,0.000105,2]
[334320122,1722967843406,-1075.0,0.00010487,2]
[334320123,1722967843416,-70523.05651966,0.000105,2]
[334320145,1722967846812,-288.26446111,0.000105,2]
[334320146,1722967846869,-35280.000002,0.000105,2]
[334320166,1722967891994,285.6,8.219e-05,2]
[334320168,1722967923952,692.41169613,8.219e-05,2]
[334320169,1722967934419,1284.55129819,8.219e-05,2]
[334320173,1722967940426,227.60103956,8.219e-05,2]
[334320175,1722967995000,500.0,0.00025792,120]
[334320178,1722968449976,271.32,8.219e-05,2]
[334320182,1722968554038,1284.55129819,8.219e-05,2]
[334320183,1722968649016,387.69711298,8.219e-05,2]
[334320184,1722968755638,92.50617056,6.94e-05,2]
[334320185,1722968755660,2624.12161433,6.94e-05,2]
[334320200,1722968860467,227.69843321,8.412e-05,2]
[334320201,1722968864027,227.63850404,8.412e-05,2]
[334320202,1722968865537,159.18667418,8.412e-05,2]
[334320203,1722968867396,6761.35477424,6.94e-05,2]
[334320204,1722968867417,5250.42190164,6.94e-05,2]
[334320205,1722968867605,1193.15530958,8.412e-05,2]
[334320206,1722968882292,526.37644031,8.412e-05,2]
[334320224,1722968958359,257.75,8.219e-05,2]
[334320234,1722968980467,463.14,9.432e-05,2]
[334320235,1722969023807,-160.0,9.727e-05,2]
[334320236,1722969023834,-8870.98,9.733e-05,2]
[334320254,1722969032125,-187.92,9.76e-05,2]
[334320255,1722969032134,-300.0,9.783e-05,2]
[334320256,1722969032144,-840.0,9.784e-05,2]
[334320257,1722969032157,-165.1,9.784e-05,2]
[334320258,1722969032166,-200.0,9.999e-05,2]
[334320259,1722969032176,-1000.0,0.0001,10]
[334320260,1722969032186,-356.25,0.0001,2]
[334320261,1722969032195,-238.42,0.0001,2]
[334320262,1722969032205,-526.37644031,0.00010196,2]
[334320263,1722969032215,-3737.90267963,0.00010196,2]
[334320283,1722969037974,-1048.96830482,0.00010196,2]
[334320284,1722969037984,-150.0,0.00010399,2]
[334320285,1722969037994,-172.59879283,0.000104,2]
[334320286,1722969038003,-337.94,0.000104,2]
[334320287,1722969038013,-708.51088772,0.000104,2]
[334320288,1722969038023,-257.75,0.00010446,2]
[334320289,1722969038032,-200.0,0.00010473,2]
[334320290,1722969038041,-200.0,0.00010473,2]
[334320291,1722969038050,-59518.55296997,0.0001048,2]
[334320292,1722969038138,-3347.23544621,0.0001048,2]
[334320297,1722969041828,-15060.20244085,0.0001048,2]
[334320298,1722969041923,-802.34351806,0.0001048,2]
[334320299,1722969041940,-721.39717133,0.0001048,2]
[334320300,1722969041959,-376.74,0.0001048,2]
[334320302,1722969042293,-1596.3,0.0001048,2]
[334320322,1722969043756,-6679.72932,0.0001048,2]
[334320323,1722969043771,-7764.0017081,0.0001048,2]
[334320324,1722969043787,-661.3131406,0.0001048,2]
[334320325,1722969043803,-27302.61239997,0.0001048,2]
[334320326,1722969043820,-38710.46975587,0.0001048,2]
[334320327,1722969043836,-1516.6,0.0001048,2]
[334320328,1722969043861,-1661.60734328,0.0001048,2]
[334320329,1722969043878,-657.15745888,0.0001048,2]
[334320330,1722969043894,-28205.32924919,0.0001048,2]
[334320354,1722969046161,-332.90332812,0.0001048,2]
[334320355,1722969046238,-396.35,0.0001048,2]
[334320356,1722969046280,-42106.41628485,0.0001048,2]
[334320357,1722969046294,-21326.51741913,0.0001049,3]
[334320360,1722969055470,2000.0,0.00025,60]
[334320361,1722969136060,500.0,0.00025,60]
[334320372,1722969164705,202.03714484,0.00027,120]
[334320377,1722969438305,231.97,8.219e-05,2]
[334320387,1722970126706,16.16,8.219e-05,2]
[334320388,1722970126727,204.21,8.219e-05,2]
[334320498,1722970232157,-231.57,9.75e-05,2]
[334320499,1722970232167,-165.1,9.773e-05,2]
[334320500,1722970232177,-160.0,9.82e-05,2]
[334320501,1722970232186,-150.6,9.885e-05,2]
[334320502,1722970232196,-872.0,9.937e-05,2]
[334320503,1722970232206,-150.0,0.00010384,2]
[334320504,1722970232216,-172.59879281,0.000104,2]
[334320505,1722970232226,-2000.0,0.000104,2]
[334320506,1722970232236,-472.34059182,0.000104,2]
[334320507,1722970232251,-220.37,0.00010463,2]
[334320508,1722970232260,-200.0,0.00010473,2]
[334320509,1722970232270,-200.0,0.00010473,2]
[334320510,1722970232280,-1221.0561,0.0001048,2]
[334320511,1722970232290,-2489.43541444,0.0001049,3]
[334320512,1722970232299,-1412.8942091,0.00010493,2]
[334320513,1722970232309,-2452.69937362,0.00010493,2]
[334320514,1722970232322,-931.590165,0.00010493,2]
[334320515,1722970232334,-128.72471078,0.00010493,2]
[334320516,1722970232344,-647.88550953,0.00010497,2]
[334320517,1722970232356,-415.22091175,0.00010497,2]
[334320518,1722970232368,-454.91767483,0.00010497,2]
[334320519,1722970232377,-14.10638783,0.00010497,2]
[334320520,1722970232389,-135.89361217,0.00010497,2]
[334320521,1722970232398,-592.103,0.00010498,2]
[334320522,1722970232408,-622.0,0.00010498,2]
[334320523,1722970232418,-1256.0,0.00010498,2]
[334320524,1722970232428,-1583.0,0.00010498,2]
[334320525,1722970232437,-402.44938783,0.00010498,2]
[334320557,1722970240350,-152.55061217,0.00010498,2]
[334320558,1722970240360,-437.572,0.00010498,2]
[334320559,1722970240370,-150.0,0.00010498,2]
[334320560,1722970240380,-138.13919835,0.00010498,2]
[334320561,1722970242055,-355.88080165,0.00010498,2]
[334320562,1722970242066,-550.0,0.00010498,2]
[334320563,1722970242076,-728.99919835,0.00010498,2]
[334320564,1722970242088,-1654.29380165,0.00010498,2]
[334320565,1722970242097,-1154.0,0.00010498,2]
[334320566,1722970242106,-5837.0,0.00010498,2]
[334320567,1722970242116,-650.94738435,0.00010498,2]
[334320568,1722970242128,-5782.29098957,0.00010498,2]
[334320569,1722970242261,-15306.76162608,0.00010498,2]
[334320572,1722970242271,-5129.0,0.00010498,2]
[334320574,1722970242281,-1671.0,0.00010498,2]
[334320576,1722970242290,-1203.0,0.00010498,2]
[334320578,1722970242301,-153.0,0.00010498,2]
[334320580,1722970242310,-157.364,0.00010498,2]
[334320582,1722970242320,-1075.0,0.00010498,2]
[334320584,1722970242332,-1629.06500109,0.00010499,3]
[334320586,1722970242341,-225729.78248393,0.00010499,2]
[334320588,1722970242351,-287550.90134989,0.000105,2]
[334320675,1722970243226,-697.23822464,0.000105,2]
[334320677,1722970243238,-3265.01060924,0.000105,2]
[334320679,1722970243251,-2934.77971038,0.000105,2]
[334320681,1722970243263,-675.025,0.000105,2]
[334320683,1722970243274,-1364.98019,0.000105,2]
[334320686,1722970243285,-521.31163644,0.000105,2]
[334320688,1722970243297,-352.24,0.000105,2]
[334320767,1722970243950,-2161.62634002,0.000105,2]
[334320769,1722970243962,-754.9399989,0.000105,2]
[334320771,1722970243974,-10992.66936184,0.000105,2]
[334320774,1722970243989,-305.67881732,0.000105,2]
[334320776,1722970244001,-1082.91734936,0.000105,2]
[334320996,1722970246491,-150.178,0.000105,2]
[334320997,1722970246500,-13146.06295148,0.000105,2]
[334320998,1722970246513,-2448.9903007,0.000105,2]
[334320999,1722970246524,-856.20926424,0.000105,2]
[334321000,1722970246536,-1638.75847345,0.000105,2]
[334321001,1722970246547,-912.34615092,0.000105,2]
[334321002,1722970246558,-37614.10693623,0.000105,2]
[334321003,1722970246569,-907.5,0.000105,2]
[334321004,1722970246580,-2427.55502287,0.000105,2]
[334321005,1722970246591,-719.95798759,0.000105,2]
[334321006,1722970246606,-1006.8,0.000105,2]
[334321007,1722970246617,-1654.18367198,0.000105,2]
[334321008,1722970246629,-1664.1825778,0.000105,2]
[334321009,1722970246640,-3694.55916163,0.000105,2]
[334321010,1722970246651,-1069.70961606,0.000105,2]
[334321011,1722970246662,-2936.12748951,0.000105,2]
[334321012,1722970246674,-675.575,0.000105,2]
[334321013,1722970246685,-1370.98775275,0.000105,2]
[334321014,1722970246696,-310.75725806,0.000105,2]
[334321015,1722970246707,-1734.84626364,0.000105,2]
[334321016,1722970246760,-747.40697802,0.000105,2]
[334321017,1722970246774,-505.14,0.000105,2]
[334321018,1722970246785,-292.064,0.000105,2]
[334321019,1722970246857,-211652.13058027,0.000105,2]
[334321042,1722970623628,198.33,8.219e-05,2]
[334321045,1722970660322,871.75845966,8.219e-05,2]
[334321046,1722970669171,1284.33399062,8.219e-05,2]
[334321047,1722970673590,155.0,8.219e-05,2]
[334321048,1722970682720,363.80792903,8.219e-05,2]
[334321049,1722970686101,155.0,8.219e-05,2]
[334321050,1722970686655,854.56131612,8.219e-05,2]
[334321051,1722970688589,1223.05007541,8.219e-05,2]
[334321052,1722970691679,1268.38387018,8.219e-05,2]
[334321053,1722970693810,1370.80088664,8.219e-05,2]
[334321054,1722970694493,425.65743734,8.219e-05,2]
[334321055,1722970700901,155.0,8.219e-05,2]
[334321056,1722970701590,227.61995131,8.219e-05,2]
[334321057,1722970703151,692.80235,8.219e-05,2]
[334321058,1722970706565,411.69952763,8.219e-05,2]
[334321059,1722970707032,2515.98420606,8.219e-05,2]
[334321060,1722970707055,5058.56873152,8.219e-05,2]
[334321061,1722970709493,790.61891375,8.219e-05,2]
[334321062,1722970709793,158.92239483,8.219e-05,2]
[334321063,1722970720345,485.35658426,8.219e-05,2]
[334321064,1722970720655,2331.39853397,8.219e-05,2]
[334321065,1722970723000,155.0,8.219e-05,2]
[334321066,1722970744335,1309.36747265,8.219e-05,2]
[334321067,1722970778018,65782.86488935,8.219e-05,2]
[334321068,1722970785683,1267.96294288,8.219e-05,2]
[334321069,1722970793603,200.0,8.219e-05,2]
[334321070,1722970797911,155.0,8.219e-05,2]
[334321073,1722970949519,1370.80088664,8.219e-05,2]
[334321076,1722970984326,1012.25719583,8.219e-05,2]
[334321077,1722970996247,485.35658426,8.219e-05,2]
[334321078,1722971014122,227.61995131,8.219e-05,2]
[334321079,1722971015519,425.65743734,8.219e-05,2]
[334321080,1722971041197,20379.93085183,8.219e-05,2]
[334321081,1722971044115,227.61995131,8.219e-05,2]
[334321082,1722971056466,363.80792903,8.219e-05,2]
[334321083,1722971059913,291.42187984,8.219e-05,2]
[334321084,1722971071195,1284.55129819,8.219e-05,2]
[334321085,1722971073796,871.33930854,8.219e-05,2]
[334321086,1722971075203,1268.17340653,8.219e-05,2]
[334321087,1722971076030,183618.23229381,8.219e-05,2]
[334321088,1722971080224,262.01031941,8.219e-05,2]
[334321089,1722971115430,425.65743734,8.219e-05,2]
[334321090,1722971124533,1370.80088664,8.219e-05,2]
[334321091,1722971136237,188.41,8.219e-05,2]
[334321092,1722971142219,14281.3115042,8.219e-05,2]
[334321093,1722971154687,481.94871116,8.219e-05,2]
[334321094,1722971157222,1268.38387018,8.219e-05,2]
[334321095,1722971173710,1284.55129819,8.219e-05,2]
[334321096,1722971174171,692.80235,8.219e-05,2]
[334321097,1722971198610,7575.83905844,8.219e-05,2]
[334321098,1722971203064,183618.23229381,8.219e-05,2]
[334321099,1722971209139,227.61995131,8.219e-05,2]
[334321100,1722971216778,425.73118234,8.219e-05,2]
[334321104,1722971245549,1370.80088664,8.219e-05,2]
[334321116,1722971252210,1267.96294288,8.219e-05,2]
[334321117,1722971260234,1284.55129819,8.219e-05,2]
[334321118,1722971297175,692.80235,8.219e-05,2]
[334321119,1722971307501,1223.05007541,8.219e-05,2]
[334321120,1722971309044,183618.23229381,8.219e-05,2]
[334321122,1722971318927,425.73118234,8.219e-05,2]
[334321123,1722971339071,139625.28538898,8.219e-05,2]
[334321124,1722971339095,43992.94690483,8.219e-05,2]
[334321125,1722971341825,7575.83905844,8.219e-05,2]
[334321172,1722971353147,1268.17340653,8.219e-05,2]
[334321174,1722971353175,1284.55129819,8.219e-05,2]
[334321205,1722971356114,227.65723628,8.219e-05,2]
[334321215,1722971389683,692.80235,8.219e-05,2]
[334321217,1722971430556,1223.05007541,8.219e-05,2]
[334321220,1722971432491,-231.57,9.789e-05,2]
[334321221,1722971432502,-150.6,9.807e-05,2]
[334321222,1722971432512,-160.0,9.948e-05,2]
[334321223,1722971432522,-424.59869432,9.962e-05,2]
[334321224,1722971432532,-316.9048992,9.962e-05,2]
[334321225,1722971432541,-61.60746387,9.962e-05,2]
[334321226,1722971432553,-19097.3925293,9.962e-05,2]
[334321227,1722971432585,-7511.65015446,9.962e-05,2]
[334321252,1722971438475,-4232.00960081,9.962e-05,2]
[334321253,1722971438487,-569.78816292,9.962e-05,2]
[334321254,1722971438590,-152145.78438245,9.962e-05,2]
[334321255,1722971438600,-889.95134063,9.962e-05,2]
[334321256,1722971438610,-224.25551007,9.962e-05,2]
[334321257,1722971438620,-7575.83905844,9.962e-05,2]
[334321258,1722971438630,-227.58266634,9.962e-05,2]
[334321259,1722971438640,-1284.55129819,9.962e-05,2]
[334321260,1722971438649,-316.9048992,9.962e-05,2]
[334321261,1722971438659,-892.04452683,9.962e-05,2]
[334321262,1722971438669,-692.80235,9.962e-05,2]
[334321263,1722971438678,-46154.0,9.995e-05,2]
[334321264,1722971438688,-412.76332321,0.0001,2]
[334321265,1722971438697,-550.0,0.0001,2]
[334321266,1722971438707,-213.48,0.00010096,2]
[334321267,1722971438716,-904.0,0.00010128,2]
[334321268,1722971438725,-5129.0,0.00010272,2]
[334321269,1722971438735,-5837.0,0.00010272,2]
[334321270,1722971438744,-584.518,0.00010272,2]
[334321271,1722971438757,-21740.0,0.00010272,2]
[334321272,1722971438771,-1203.0,0.00010272,2]
[334321273,1722971438780,-1105.45929316,0.0001029,2]
[334321274,1722971438789,-1073.09372355,0.0001029,2]
[334321275,1722971438799,-172.59879281,0.000104,2]
[334321276,1722971438808,-188.41,0.00010465,2]
[334321278,1722971438817,-200.0,0.00010473,2]
[334321280,1722971438826,-200.0,0.00010473,2]
[334321281,1722971438836,-1053.2287105,0.00010493,2]
[334321282,1722971438845,-2612.4582229,0.00010493,2]
[334321283,1722971438855,-193.915,0.000105,2]
[334321284,1722971438864,-200.0,0.000105,2]
[334321285,1722971438874,-285.861,0.000105,2]
[334321286,1722971438883,-218826.82729888,0.000105,2]
[334321287,1722971438896,-70651.05816258,0.000105,2]
[334321288,1722971438907,-889.92097399,0.000105,2]
[334321289,1722971438919,-2735.53908701,0.000105,2]
[334321290,1722971438931,-14672.74760657,0.000105,2]
[334321291,1722971438942,-653.67901261,0.000105,2]
[334321293,1722971438956,-37102.9931221,0.000105,2]
[334321324,1722971440514,-1075.0,0.00010272,2]
[334321325,1722971440524,-169.6844767,0.000105,2]
[334321326,1722971440711,-1186.47033335,0.000105,2]
[334321327,1722971440816,-11433.18166641,0.000105,2]
[334321328,1722971440827,-1454.69993892,0.000105,2]
[334321329,1722971440838,-568.84550948,0.000105,2]
[334321330,1722971440849,-1253.925,0.000105,2]
[334321436,1722971444063,-200.0,0.00010473,2]
[334321437,1722971444075,-65.7,0.000105,2]
[334321438,1722971444891,-11861.36794215,0.000105,2]
[334321439,1722971444907,-54419.4504,0.000105,2]
[334321440,1722971444922,-39762.20250775,0.000105,2]
[334321441,1722971444937,-923.24851406,0.000105,2]
[334321442,1722971444951,-623.2797952,0.000105,2]
[334321443,1722971444968,-655.16092701,0.000105,2]
[334321454,1722971446578,-1170999.95155993,0.000105,2]
[334321457,1722971446667,-4774.74563247,0.000105,2]
[334321458,1722971446758,-362.2774596,0.000105,2]
[334321459,1722971446845,-1214.69466643,0.000105,2]
[334321466,1722971458423,153.89,8.09e-05,2]
[334321467,1722971524133,227.61995131,8.09e-05,2]
[334321468,1722971525562,1223.05007541,8.09e-05,2]
[334321469,1722971525870,188.0,8.09e-05,2]
[334321470,1722971536056,183618.23229381,8.09e-05,2]
[334321472,1722971547688,646.27612517,8.09e-05,2]
[334321473,1722971548595,3905.81911132,8.09e-05,2]
[334321475,1722971562679,646.27612517,8.09e-05,2]
[334321476,1722971565694,510.87707945,8.09e-05,2]
[334321477,1722971617353,1284.55129819,8.09e-05,2]
[334321481,1722971626899,237.61246074,0.00025,120]
[334321482,1722971637171,166655.02240605,8.09e-05,2]
[334321483,1722971652567,284.15,8.219e-05,2]
[334321484,1722971742611,828.12126725,8.219e-05,2]
[334321485,1722971779719,168.83,9.115e-05,2]
[334321488,1722971823239,250.0,9.115e-05,2]
[334321490,1722971870223,23900.0,9.112e-05,2]
[334321491,1722971908056,173.57,9.102e-05,2]
[334321492,1722971938204,160.0,9.106e-05,2]
[334321495,1722972012381,153.89,7.272e-05,2]
[334321496,1722972087805,948.14446095,8.814e-05,2]
[334321497,1722972127806,948.14446095,8.814e-05,2]
[334321498,1722972144117,1002.956512,8.814e-05,2]
[334321499,1722972199364,269.94,8.219e-05,2]
[334321502,1722972395761,205.49,9.093e-05,2]
[334321504,1722972424281,968.0,9.097e-05,2]
[334321603,1722972592376,-299.98,9.573e-05,2]
[334321604,1722972592406,-299.98,9.575e-05,2]
[334321605,1722972592435,-299.98,9.578e-05,2]
[334321606,1722972592464,-299.98,9.58e-05,2]
[334321607,1722972592492,-299.98,9.583e-05,2]
[334321608,1722972592520,-299.98,9.585e-05,2]
[334321609,1722972592549,-299.98,9.588e-05,2]
[334321610,1722972592582,-299.98,9.59e-05,2]
[334321611,1722972592609,-299.98,9.593e-05,2]
[334321612,1722972592638,-299.98,9.595e-05,2]
[334321613,1722972592668,-299.98,9.598e-05,2]
[334321614,1722972592697,-299.98,9.6e-05,2]
[334321615,1722972592728,-299.98,9.603e-05,2]
[334321616,1722972592755,-167.55186615,9.605e-05,2]
[334321631,1722972631796,-132.42813385,9.605e-05,2]
[334321632,1722972631806,-299.98,9.608e-05,2]
[334321633,1722972631815,-299.98,9.61e-05,2]
[334321634,1722972631825,-299.98,9.613e-05,2]
[334321635,1722972631835,-299.98,9.615e-05,2]
[334321636,1722972631845,-299.98,9.618e-05,2]
[334321637,1722972631854,-299.98,9.62e-05,2]
[334321638,1722972631863,-300.0,9.669e-05,2]
[334321639,1722972631872,-8460.98,9.67e-05,2]
[334321640,1722972631882,-150.99,9.67e-05,2]
[334321641,1722972631891,-499.99,9.67e-05,2]
[334321642,1722972631901,-449.2902918,9.962e-05,2]
[334321643,1722972631911,-3808.20467792,0.0001,2]
[334321644,1722972631927,-12068.36822671,0.0001,2]
[334321645,1722972631942,-550.0,0.0001,2]
[334321646,1722972631951,-2791.206,0.00010001,2]
[334321647,1722972631961,-1494.17896266,0.00010001,2]
[334321648,1722972631971,-839.2412,0.00010172,2]
[334321649,1722972631980,-205.49,0.0001023,2]
[334321650,1722972631989,-968.0,0.00010234,2]
[334321651,1722972631999,-150.0,0.0001025,2]
[334321652,1722972632008,-1500.0,0.00010257,2]
[334321653,1722972632018,-1038.539644,0.0001029,2]
[334321654,1722972632027,-1500.0,0.0001031,2]
[334321655,1722972632037,-150.0,0.00010315,2]
[334321656,1722972632046,-150.0,0.00010325,2]
[334321657,1722972632055,-271.74656716,0.00010378,2]
[334321658,1722972632064,-150.0,0.00010382,2]
[334321659,1722972632074,-20944.24846,0.000104,2]
[334321660,1722972632083,-172.59879281,0.000104,2]
[334321661,1722972632092,-3530.85071635,0.000104,2]
[334321662,1722972632104,-3721.59108365,0.000104,2]
[334321664,1722972632113,-169.27176964,0.000104,2]
[334321666,1722972632123,-1765.86826672,0.000104,2]
[334321668,1722972632139,-945.52168804,0.000104,2]
[334321690,1722972637626,-835.77,0.000104,2]
[334321694,1722972637833,-255.3477856,0.000104,2]
[334321697,1722972639623,-681.26488617,0.000104,2]
[334321698,1722972640277,-534.05368166,0.000104,2]
[334321699,1722972640290,-4620.65287364,0.000104,2]
[334321700,1722972640302,-572.14880184,0.000104,2]
[334321701,1722972640318,-259.00060401,0.000104,2]
[334321702,1722972640330,-223.63741232,0.000104,2]
[334321704,1722972640340,-174.67588143,0.000104,2]
[334321706,1722972640349,-450.98170625,0.000104,2]
[334321707,1722972640361,-1027.01829375,0.000104,2]
[334321708,1722972640370,-759.54426658,0.000104,2]
[334321709,1722972640380,-314.89372788,0.000104,2]
[334321710,1722972640390,-1461.93213714,0.00010424,2]
[334321711,1722972640399,-269.94,0.00010428,2]
[334321712,1722972640408,-1017.54675,0.0001045,2]
[334321713,1722972640418,-150.0,0.0001047,2]
[334321714,1722972640427,-200.0,0.00010473,2]
[334321715,1722972640436,-200.0,0.00010473,2]
[334321716,1722972640446,-41593.0,0.0001049,3]
[334321717,1722972640455,-351.0289109,0.00010493,2]
[334321718,1722972640464,-1255.1686422,0.00010493,2]
[334321719,1722972640473,-504.348947,0.00010493,2]
[334321720,1722972640483,-7973.6856621,0.00010493,2]
[334321721,1722972640493,-150.01,0.00010499,2]
[334321722,1722972640502,-3057.63359769,0.00010499,2]
[334321723,1722972640511,-660.0,0.000105,2]
[334321724,1722972640521,-3251474.64087928,0.000105,2]
[334321775,1722972643297,-613.09825755,0.000105,2]
[334321778,1722972643315,-17706.92100575,0.000105,2]
[334321790,1722972645685,-919.317,0.0001049,2]
[334321793,1722972645695,-227.62095888,0.000105,2]
[334321801,1722972645768,-399.1,0.000105,2]
[334322614,1722972709046,242.94,8.219e-05,2]
[334322646,1722973183969,230.79,8.219e-05,2]
[334322669,1722973688231,227.65723628,8.219e-05,2]
[334322670,1722973703061,290.92754573,8.219e-05,2]
[334322671,1722973709833,20379.93085183,8.219e-05,2]
[334322672,1722973710678,1223.05007541,8.219e-05,2]
[334322673,1722973717461,3785.25948842,8.219e-05,2]
[334322674,1722973736571,238.65,8.219e-05,2]
[334322675,1722973737197,183691.2237982,8.219e-05,2]
[334322735,1722973777226,227.58266634,8.219e-05,2]
[334322753,1722973831731,-580.8,9.766e-05,2]
[334322754,1722973831741,-172.56,9.77e-05,2]
[334322755,1722973831750,-39.2301174,9.793e-05,2]
[334322756,1722973831762,-379.9698826,9.793e-05,2]
[334322757,1722973831774,-774.89385423,9.962e-05,2]
[334322758,1722973831786,-302.12911933,9.962e-05,2]
[334322759,1722973831795,-240.54966121,9.962e-05,2]
[334322760,1722973831806,-4118.30394072,9.962e-05,2]
[334322761,1722973831819,-7871.96110263,9.962e-05,2]
[334322762,1722973831831,-2613.10872722,9.962e-05,2]
[334322763,1722973831843,-1974.8225,9.962e-05,2]
[334322764,1722973831854,-876.11960137,9.962e-05,2]
[334322765,1722973831870,-37457.11055619,9.962e-05,2]
[334322766,1722973831882,-703.37788318,9.962e-05,2]
[334322767,1722973831894,-609.67999998,9.962e-05,2]
[334322768,1722973831906,-463.05,9.962e-05,2]
[334322769,1722973831917,-126763.1398257,9.962e-05,2]
[334322770,1722973831928,-450.0,9.962e-05,2]
[334322771,1722973831937,-450.0,9.962e-05,2]
[334322772,1722973831947,-1131.0,0.000102,2]
[334322773,1722973831957,-150.0,0.00010256,2]
[334322774,1722973831967,-1036.96100682,0.0001029,2]
[334322775,1722973831977,-1034.8258485,0.0001029,2]
[334322776,1722973831986,-150.0,0.00010356,2]
[334322777,1722973831996,-150.0,0.00010386,2]
[334322779,1722973832006,-150.0,0.00010389,2]
[334322781,1722973832020,-938.4516,0.000104,2]
[334322782,1722973832031,-169.27176964,0.000104,2]
[334322783,1722973832040,-1128.14777691,0.000104,2]
[334322784,1722973832049,-203.78852834,0.000104,2]
[334322785,1722973832060,-3000.0,0.000104,2]
[334322786,1722973832069,-238.65,0.0001046,2]
[334322788,1722973832079,-150.0,0.00010465,2]
[334322790,1722973832088,-300.0,0.00010465,2]
[334322792,1722973832097,-200.0,0.00010473,2]
[334322794,1722973832108,-200.0,0.00010473,2]
[334322796,1722973832118,-317.5707235,0.00010493,2]
[334322798,1722973832127,-1568.3546112,0.00010493,2]
[334322800,1722973832137,-372.3662286,0.00010493,2]
[334322802,1722973832147,-9963.2561362,0.00010493,2]
[334322804,1722973832156,-1528.81679884,0.00010499,2]
[334322806,1722973832166,-501.0,0.000105,2]
[334322808,1722973832175,-30303.5333685,0.000105,2]
[334322810,1722973832187,-1618.07633989,0.000105,2]
[334322812,1722973832198,-539.7543628,0.000105,2]
[334322815,1722973832209,-727.39559761,0.000105,2]
[334322817,1722973832220,-4259.61070056,0.000105,2]
[334322819,1722973832231,-439.08201442,0.000105,2]
[334322821,1722973832243,-944.2729313,0.000105,2]
[334322824,1722973832316,-472.53583505,0.000105,2]
[334322825,1722973832328,-3185.94146673,0.000105,2]
[334322826,1722973832349,-340.78735789,0.000105,2]
[334322827,1722973833843,2655.07180159,8.219e-05,2]
[334322829,1722973837714,-227.61995131,9.962e-05,2]
[334322830,1722973837724,-29188.24843039,0.000105,2]
[334322831,1722973837737,-994.53623725,0.000105,2]